fUST/lending_fUST_20241120
["ID","MTS","AMOUNT","RATE_DAILY","PERIOD"]
[342746811,1732098666644,-1287.91,0.00023561,7]
[342746812,1732098666654,-3378.45,0.00023561,7]
[342746813,1732098666664,-500.0,0.00023561,7]
[342746814,1732098666674,-500.0,0.00023561,7]
[342746815,1732098666683,-720.6,0.00023561,7]
[342746816,1732098666693,-3743.65,0.00023561,7]
[342746817,1732098666702,-500.0,0.00023561,7]
[342746818,1732098666712,-606.03,0.00023561,7]
[342746819,1732098666721,-203.05402691,0.00023561,7]
[342746820,1732098666732,-500.0,0.00023561,7]
[342746821,1732098666742,-975.02,0.00023561,7]
[342746822,1732098666752,-500.0,0.00023561,7]
[342746823,1732098666762,-298.91579608,0.00023616,2]
[342746824,1732098666775,-1500.0,0.00023722,2]
[342746825,1732098666785,-298.91579608,0.00023726,2]
[342746826,1732098666797,-160.0,0.000238,8]
[342746827,1732098666808,-500.0,0.00023835,7]
[342746828,1732098666817,-500.0,0.00023835,7]
[342746829,1732098666827,-635.74,0.00023835,7]
[342746830,1732098666839,-557.72884195,0.00023835,7]
[342746831,1732098666848,-616.79,0.00023835,7]
[342746832,1732098666858,-500.0,0.00023835,7]
[342746833,1732098666868,-648.76,0.00023835,7]
[342746834,1732098666879,-837.88,0.00023835,7]
[342746835,1732098666888,-500.0,0.00023835,7]
[342746836,1732098666898,-500.0,0.00023835,7]
[342746837,1732098666908,-614.76,0.00023835,7]
[342746838,1732098666918,-500.0,0.00023835,7]
[342746839,1732098666927,-553.46,0.00023835,7]
[342746840,1732098666937,-1142.87,0.00023835,7]
[342746841,1732098666947,-500.0,0.00023835,7]
[342746842,1732098666957,-500.0,0.00023835,7]
[342746843,1732098666966,-500.0,0.00023835,7]
[342746844,1732098666976,-500.0,0.00023835,7]
[342746845,1732098666986,-353.5,0.00023835,7]
[342746846,1732098666996,-630.57508352,0.00023835,7]
[342746847,1732098667006,-500.0,0.00023835,7]
[342746848,1732098667016,-586.55,0.00023835,7]
[342746849,1732098667026,-500.0,0.00023835,7]
[342746850,1732098667036,-500.0,0.00023835,7]
[342746851,1732098667045,-500.0,0.00023835,7]
[342746852,1732098667055,-500.0,0.00023835,7]
[342746853,1732098667064,-500.0,0.00023835,7]
[342746854,1732098667074,-500.0,0.00023835,7]
[342746855,1732098667084,-500.0,0.00023835,7]
[342746856,1732098667094,-500.0,0.00023835,7]
[342746857,1732098667104,-518.86,0.00023835,7]
[342746858,1732098667114,-500.0,0.00023835,7]
[342746859,1732098667124,-500.0,0.00023835,7]
[342746860,1732098667134,-512.06,0.00023835,7]
[342746861,1732098667144,-500.0,0.00023835,7]
[342746862,1732098667154,-958.07,0.00023835,7]
[342746863,1732098667163,-500.0,0.00023835,7]
[342746864,1732098667173,-500.0,0.00023835,7]
[342746865,1732098667183,-500.0,0.00023835,7]
[342746866,1732098667193,-500.0,0.00023835,7]
[342746867,1732098667203,-518.73,0.00023835,7]
[342746868,1732098667212,-1123.69,0.00023835,7]
[342746869,1732098667222,-500.0,0.00023835,7]
[342746870,1732098667231,-645.57,0.00023835,7]
[342746871,1732098667241,-500.0,0.00023835,7]
[342746872,1732098667251,-945.04,0.00023835,7]
[342746873,1732098667260,-500.0,0.00023835,7]
[342746874,1732098667273,-500.0,0.00023835,7]
[342746875,1732098667282,-561.21,0.00023835,7]
[342746876,1732098667292,-599.35,0.00023835,7]
[342746877,1732098667302,-500.0,0.00023835,7]
[342746878,1732098667311,-829.07,0.00023835,7]
[342746879,1732098667320,-162.25193197,0.00023835,7]
[342746880,1732098667330,-500.0,0.00023835,7]
[342746881,1732098667339,-500.0,0.00023835,7]
[342746882,1732098667348,-603.80852945,0.00023835,7]
[342746883,1732098667357,-500.0,0.00023835,7]
[342746884,1732098667367,-500.0,0.00023835,7]
[342746885,1732098667377,-838.19,0.00023835,7]
[342746886,1732098667386,-500.0,0.00023835,7]
[342746887,1732098667396,-1261.05,0.00023835,7]
[342746888,1732098667405,-572.89,0.00023835,7]
[342746889,1732098667414,-500.0,0.00023835,7]
[342746890,1732098667424,-500.0,0.00023835,7]
[342746891,1732098667433,-232.46582213,0.00023835,7]
[342746892,1732098667442,-500.0,0.00023835,7]
[342746893,1732098667452,-500.0,0.00023835,7]
[342746894,1732098667461,-500.0,0.00023835,7]
[342746895,1732098667471,-500.0,0.00023835,7]
[342746896,1732098667480,-500.0,0.00023835,7]
[342746897,1732098667489,-500.0,0.00023835,7]
[342746898,1732098667499,-802.01,0.00023835,7]
[342746899,1732098667509,-760.12,0.00023835,7]
[342746900,1732098667523,-774.31,0.00023835,7]
[342746901,1732098667533,-500.0,0.00023835,7]
[342746902,1732098667542,-500.0,0.00023835,7]
[342746903,1732098667552,-618.19,0.00023835,7]
[342746904,1732098667561,-500.0,0.00023835,7]
[342746905,1732098667570,-500.0,0.00023835,7]
[342746906,1732098667580,-500.0,0.00023835,7]
[342746907,1732098667589,-500.0,0.00023835,7]
[342746908,1732098667599,-500.0,0.00023835,7]
[342746909,1732098667608,-500.0,0.00023835,7]
[342746910,1732098667617,-789.67,0.00023835,7]
[342746911,1732098667705,-711.02,0.00023835,7]
[342746912,1732098667716,-513.86671143,0.00023835,7]
[342746913,1732098667726,-500.0,0.00023835,7]
[342746914,1732098667735,-523.39,0.00023835,7]
[342746915,1732098667745,-500.0,0.00023835,7]
[342746916,1732098667754,-992.86,0.00023835,7]
[342746917,1732098667764,-629.97,0.00023835,7]
[342746918,1732098667779,-477.93387207,0.00023835,7]
[342746919,1732098667790,-500.0,0.00023835,7]
[342746920,1732098667804,-382.91477633,0.00023835,7]
[342746921,1732098667815,-500.0,0.00023835,7]
[342746922,1732098667824,-500.0,0.00023835,7]
[342746923,1732098667836,-781.36,0.00023835,7]
[342746924,1732098667847,-500.0,0.00023835,7]
[342746925,1732098667857,-500.0,0.00023835,7]
[342746926,1732098667867,-901.62,0.00023835,7]
[342746927,1732098667878,-500.0,0.00023835,7]
[342746928,1732098667887,-553.39,0.00023835,7]
[342746929,1732098667896,-500.0,0.00023835,7]
[342746930,1732098667905,-500.0,0.00023835,7]
[342746931,1732098667915,-500.0,0.00023835,7]
[342746932,1732098667924,-500.0,0.00023835,7]
[342746933,1732098667933,-500.0,0.00023835,7]
[342746934,1732098667943,-500.0,0.00023835,7]
[342746935,1732098667951,-902.77,0.00023835,7]
[342746936,1732098667961,-500.0,0.00023835,7]
[342746937,1732098667970,-500.0,0.00023835,7]
[342746938,1732098667980,-591.08020903,0.00023835,7]
[342746939,1732098667989,-500.0,0.00023835,7]
[342746940,1732098667998,-500.0,0.00023835,7]
[342746941,1732098668007,-1000.0,0.00023835,2]
[342746942,1732098668016,-602.4,0.00023835,7]
[342746943,1732098668027,-902.25,0.00023835,7]
[342746944,1732098668037,-578.43,0.00023835,7]
[342746945,1732098668046,-22918.44,0.00023835,7]
[342746946,1732098668055,-500.0,0.00023835,7]
[342746947,1732098668065,-2748.58,0.00023835,7]
[342746948,1732098668075,-500.0,0.00023835,7]
[342746949,1732098668085,-500.0,0.00023835,7]
[342746950,1732098668094,-500.0,0.00023835,7]
[342746951,1732098668104,-2295.85,0.00023835,7]
[342746952,1732098668113,-500.0,0.00023835,7]
[342746953,1732098668122,-500.0,0.00023835,7]
[342746954,1732098668132,-500.0,0.00023835,7]
[342746955,1732098668142,-500.0,0.00023835,7]
[342746956,1732098668152,-500.0,0.00023835,7]
[342746957,1732098668161,-1877.29,0.00023835,7]
[342746958,1732098668171,-1194.38,0.00023835,7]
[342746959,1732098668180,-500.0,0.00023835,7]
[342746960,1732098668189,-500.0,0.00023835,7]
[342746961,1732098668199,-739.28,0.00023835,7]
[342746962,1732098668209,-500.0,0.00023835,7]
[342746963,1732098668218,-3097.05,0.00023835,7]
[342746964,1732098668227,-528.56,0.00023835,7]
[342746965,1732098668237,-924.07,0.00023835,7]
[342746966,1732098668246,-500.0,0.00023835,7]
[342746967,1732098668255,-500.0,0.00023835,7]
[342746968,1732098668265,-500.0,0.00023835,7]
[342746969,1732098668278,-1005.07,0.00023835,7]
[342746970,1732098668287,-500.0,0.00023835,7]
[342746971,1732098668296,-520.37,0.00023835,7]
[342746972,1732098668306,-656.47,0.00023835,7]
[342746973,1732098668315,-1122.57,0.00023835,7]
[342746974,1732098668325,-500.0,0.00023835,7]
[342746975,1732098668335,-720.66,0.00023835,7]
[342746976,1732098668345,-500.0,0.00023835,7]
[342746977,1732098668354,-911.96,0.00023835,7]
[342746978,1732098668364,-666.72,0.00023835,7]
[342746979,1732098668375,-152.61854945,0.00023835,7]
[342746980,1732098668384,-500.0,0.00023835,7]
[342746981,1732098668394,-500.0,0.00023835,7]
[342746982,1732098668404,-500.0,0.00023835,7]
[342746983,1732098668413,-500.0,0.00023835,7]
[342746984,1732098668423,-500.0,0.00023835,7]
[342746985,1732098668432,-739.82,0.00023835,7]
[342746986,1732098668441,-500.0,0.00023835,7]
[342746987,1732098668451,-500.0,0.00023835,7]
[342746988,1732098668461,-526.88,0.00023835,7]
[342746989,1732098668471,-808.24,0.00023835,7]
[342746990,1732098668481,-550.61,0.00023835,7]
[342746991,1732098668490,-628.93,0.00023835,7]
[342746992,1732098668500,-889.46,0.00023835,7]
[342746993,1732098668510,-608.25,0.00023835,7]
[342746994,1732098668522,-4981.89,0.00023835,7]
[342746995,1732098668531,-500.0,0.00023835,7]
[342746996,1732098668541,-388.21188511,0.00023835,7]
[342746997,1732098668551,-500.0,0.00023835,7]
[342746998,1732098668561,-584.96,0.00023835,7]
[342746999,1732098668576,-931.0,0.00023835,7]
[342747000,1732098668586,-504.6521901,0.00023835,7]
[342747001,1732098668599,-500.0,0.00023835,7]
[342747002,1732098668617,-500.0,0.00023835,7]
[342747003,1732098668636,-500.0,0.00023835,7]
[342747004,1732098668648,-500.0,0.00023835,7]
[342747005,1732098668658,-3228.47,0.00023835,7]
[342747006,1732098668667,-500.0,0.00023835,7]
[342747007,1732098668678,-500.0,0.00023835,7]
[342747008,1732098668687,-903.73,0.00023835,7]
[342747009,1732098668697,-500.0,0.00023835,7]
[342747010,1732098668706,-5887.59,0.00023835,7]
[342747011,1732098668715,-500.0,0.00023835,7]
[342747012,1732098668724,-159.73944609,0.00023835,7]
[342747013,1732098668734,-500.0,0.00023835,7]
[342747014,1732098668743,-500.0,0.00023835,7]
[342747015,1732098668752,-500.0,0.00023835,7]
[342747016,1732098668762,-545.65,0.00023835,7]
[342747017,1732098668774,-527.75,0.00023835,7]
[342747018,1732098668783,-500.0,0.00023835,7]
[342747019,1732098668793,-500.0,0.00023835,7]
[342747020,1732098668806,-2693.86,0.00023835,7]
[342747021,1732098668816,-500.0,0.00023835,7]
[342747022,1732098668826,-500.0,0.00023835,7]
[342747023,1732098668836,-500.0,0.00023835,7]
[342747024,1732098668846,-500.0,0.00023835,7]
[342747025,1732098668856,-500.0,0.00023835,7]
[342747026,1732098668866,-571.31,0.00023835,7]
[342747027,1732098668877,-500.0,0.00023835,7]
[342747028,1732098668886,-500.0,0.00023835,7]
[342747029,1732098668895,-500.0,0.00023835,7]
[342747030,1732098668904,-500.0,0.00023835,7]
[342747031,1732098668913,-500.0,0.00023835,7]
[342747032,1732098668922,-772.94,0.00023835,7]
[342747033,1732098668933,-1287.91,0.00023835,7]
[342747034,1732098668943,-3378.45,0.00023835,7]
[342747035,1732098668952,-500.0,0.00023835,7]
[342747036,1732098668962,-500.0,0.00023835,7]
[342747037,1732098668972,-720.6,0.00023835,7]
[342747038,1732098668982,-3743.65,0.00023835,7]
[342747039,1732098669068,-500.0,0.00023835,7]
[342747040,1732098669078,-606.03,0.00023835,7]
[342747041,1732098669088,-500.0,0.00023835,7]
[342747042,1732098669098,-975.02,0.00023835,7]
[342747043,1732098669108,-500.0,0.00023835,7]
[342747044,1732098669117,-4274.07660746,0.00023852,2]
[342747045,1732098669127,-298.91579608,0.00023863,2]
[342747046,1732098669136,-563.52243508,0.00023889,9]
[342747047,1732098669146,-500.0,0.00023889,9]
[342747048,1732098669155,-298.91579608,0.00023973,2]
[342747049,1732098669165,-727.32,0.00024,2]
[342747050,1732098669175,-700.52387947,0.00024,2]
[342747051,1732098669184,-15771.6510489,0.00024,2]
[342747052,1732098669194,-585.33102149,0.00024081,2]
[342747053,1732098669203,-298.91579608,0.00024082,2]
[342747054,1732098669213,-3206.993,0.00024088,2]
[342747055,1732098669222,-500.0,0.00024109,7]
[342747056,1732098669231,-500.0,0.00024109,7]
[342747057,1732098669241,-635.74,0.00024109,7]
[342747058,1732098669250,-616.79,0.00024109,7]
[342747059,1732098669259,-500.0,0.00024109,7]
[342747060,1732098669271,-648.76,0.00024109,7]
[342747061,1732098669281,-837.88,0.00024109,7]
[342747062,1732098669290,-500.0,0.00024109,7]
[342747063,1732098669300,-500.0,0.00024109,7]
[342747064,1732098669309,-614.76,0.00024109,7]
[342747065,1732098669319,-500.0,0.00024109,7]
[342747066,1732098669328,-553.46,0.00024109,7]
[342747067,1732098669337,-1142.87,0.00024109,7]
[342747068,1732098669346,-500.0,0.00024109,7]
[342747069,1732098669355,-500.0,0.00024109,7]
[342747070,1732098669366,-614.0112471,0.00024109,7]
[342747071,1732098669376,-500.0,0.00024109,7]
[342747072,1732098669385,-405.62540238,0.00024109,7]
[342747073,1732098669395,-586.55,0.00024109,7]
[342747074,1732098669404,-500.0,0.00024109,7]
[342747075,1732098669414,-500.0,0.00024109,7]
[342747076,1732098669424,-500.0,0.00024109,7]
[342747077,1732098669433,-500.0,0.00024109,7]
[342747078,1732098669443,-500.0,0.00024109,7]
[342747079,1732098669452,-500.0,0.00024109,7]
[342747080,1732098669461,-500.0,0.00024109,7]
[342747081,1732098669470,-518.86,0.00024109,7]
[342747082,1732098669479,-454.59114878,0.00024109,7]
[342747083,1732098669489,-642.72949894,0.00024109,7]
[342747084,1732098669499,-512.06,0.00024109,7]
[342747085,1732098669508,-500.0,0.00024109,7]
[342747086,1732098669519,-958.07,0.00024109,7]
[342747087,1732098669529,-500.0,0.00024109,7]
[342747088,1732098669538,-500.0,0.00024109,7]
[342747089,1732098669548,-500.0,0.00024109,7]
[342747090,1732098669557,-500.0,0.00024109,7]
[342747091,1732098669567,-518.73,0.00024109,7]
[342747092,1732098669576,-1123.69,0.00024109,7]
[342747093,1732098669586,-500.0,0.00024109,7]
[342747094,1732098669595,-645.57,0.00024109,7]
[342747095,1732098669605,-500.0,0.00024109,7]
[342747096,1732098669614,-945.04,0.00024109,7]
[342747097,1732098669623,-182.96905025,0.00024109,7]
[342747098,1732098669640,-500.0,0.00024109,7]
[342747099,1732098669657,-561.21,0.00024109,7]
[342747100,1732098669677,-599.35,0.00024109,7]
[342747101,1732098669695,-296.87565085,0.00024109,7]
[342747102,1732098669712,-829.07,0.00024109,7]
[342747103,1732098669732,-303.07920514,0.00024109,7]
[342747104,1732098669752,-224.97048165,0.00024109,7]
[342747105,1732098669771,-500.0,0.00024109,7]
[342747106,1732098669792,-500.0,0.00024109,7]
[342747107,1732098669813,-838.19,0.00024109,7]
[342747108,1732098669831,-500.0,0.00024109,7]
[342747109,1732098669848,-1261.05,0.00024109,7]
[342747110,1732098669865,-572.89,0.00024109,7]
[342747111,1732098669883,-500.0,0.00024109,7]
[342747112,1732098669896,-506.47988755,0.00024109,7]
[342747113,1732098669914,-500.0,0.00024109,7]
[342747114,1732098669931,-500.0,0.00024109,7]
[342747115,1732098669948,-500.0,0.00024109,7]
[342747116,1732098669963,-500.0,0.00024109,7]
[342747117,1732098669980,-500.0,0.00024109,7]
[342747118,1732098669996,-500.0,0.00024109,7]
[342747119,1732098670011,-802.01,0.00024109,7]
[342747120,1732098670028,-760.12,0.00024109,7]
[342747121,1732098670044,-774.31,0.00024109,7]
[342747122,1732098670058,-500.0,0.00024109,7]
[342747123,1732098670073,-500.0,0.00024109,7]
[342747124,1732098670089,-618.19,0.00024109,7]
[342747125,1732098670105,-500.0,0.00024109,7]
[342747126,1732098670121,-500.0,0.00024109,7]
[342747127,1732098670137,-500.0,0.00024109,7]
[342747128,1732098670153,-500.0,0.00024109,7]
[342747129,1732098670169,-500.0,0.00024109,7]
[342747130,1732098670185,-500.0,0.00024109,7]
[342747131,1732098670200,-789.67,0.00024109,7]
[342747132,1732098670216,-711.02,0.00024109,7]
[342747133,1732098670232,-500.0,0.00024109,7]
[342747134,1732098670247,-523.39,0.00024109,7]
[342747135,1732098670261,-500.0,0.00024109,7]
[342747136,1732098670279,-992.86,0.00024109,7]
[342747137,1732098670293,-629.97,0.00024109,7]
[342747138,1732098670309,-500.0,0.00024109,7]
[342747139,1732098670324,-500.0,0.00024109,7]
[342747140,1732098670343,-500.0,0.00024109,7]
[342747141,1732098670360,-781.36,0.00024109,7]
[342747142,1732098670376,-500.0,0.00024109,7]
[342747143,1732098670392,-500.0,0.00024109,7]
[342747144,1732098670407,-901.62,0.00024109,7]
[342747145,1732098670423,-500.0,0.00024109,7]
[342747146,1732098670438,-553.39,0.00024109,7]
[342747147,1732098670454,-500.0,0.00024109,7]
[342747148,1732098670470,-500.0,0.00024109,7]
[342747149,1732098670486,-500.0,0.00024109,7]
[342747150,1732098670500,-500.0,0.00024109,7]
[342747151,1732098670516,-500.0,0.00024109,7]
[342747152,1732098670536,-500.0,0.00024109,7]
[342747153,1732098670550,-902.77,0.00024109,7]
[342747154,1732098670565,-500.0,0.00024109,7]
[342747155,1732098670580,-500.0,0.00024109,7]
[342747156,1732098670708,-500.0,0.00024109,7]
[342747157,1732098670718,-500.0,0.00024109,7]
[342747158,1732098670727,-1000.0,0.00024109,2]
[342747159,1732098670737,-602.4,0.00024109,7]
[342747160,1732098670747,-902.25,0.00024109,7]
[342747161,1732098670757,-578.43,0.00024109,7]
[342747162,1732098670766,-22918.44,0.00024109,7]
[342747163,1732098670778,-500.0,0.00024109,7]
[342747164,1732098670789,-2748.58,0.00024109,7]
[342747165,1732098670800,-500.0,0.00024109,7]
[342747166,1732098670811,-500.0,0.00024109,7]
[342747167,1732098670821,-500.0,0.00024109,7]
[342747168,1732098670831,-2295.85,0.00024109,7]
[342747169,1732098670843,-500.0,0.00024109,7]
[342747170,1732098670852,-500.0,0.00024109,7]
[342747171,1732098670862,-500.0,0.00024109,7]
[342747172,1732098670872,-500.0,0.00024109,7]
[342747173,1732098670885,-500.0,0.00024109,7]
[342747174,1732098670896,-1877.29,0.00024109,7]
[342747175,1732098670906,-1194.38,0.00024109,7]
[342747176,1732098670915,-500.0,0.00024109,7]
[342747177,1732098670925,-500.0,0.00024109,7]
[342747178,1732098670934,-739.28,0.00024109,7]
[342747179,1732098670944,-500.0,0.00024109,7]
[342747180,1732098670954,-3097.05,0.00024109,7]
[342747181,1732098670964,-528.56,0.00024109,7]
[342747182,1732098670973,-924.07,0.00024109,7]
[342747183,1732098670983,-500.0,0.00024109,7]
[342747184,1732098670993,-500.0,0.00024109,7]
[342747185,1732098671003,-500.0,0.00024109,7]
[342747186,1732098671013,-1005.07,0.00024109,7]
[342747187,1732098671024,-500.0,0.00024109,7]
[342747188,1732098671034,-520.37,0.00024109,7]
[342747189,1732098671044,-656.47,0.00024109,7]
[342747190,1732098671054,-1122.57,0.00024109,7]
[342747191,1732098671064,-571.85074108,0.00024109,7]
[342747192,1732098671074,-720.66,0.00024109,7]
[342747193,1732098671084,-500.0,0.00024109,7]
[342747194,1732098671094,-666.72,0.00024109,7]
[342747195,1732098671103,-911.96,0.00024109,7]
[342747196,1732098671113,-500.0,0.00024109,7]
[342747197,1732098671123,-500.0,0.00024109,7]
[342747198,1732098671133,-500.0,0.00024109,7]
[342747199,1732098671142,-500.0,0.00024109,7]
[342747200,1732098671152,-500.0,0.00024109,7]
[342747201,1732098671161,-739.82,0.00024109,7]
[342747202,1732098671171,-500.0,0.00024109,7]
[342747203,1732098671181,-500.0,0.00024109,7]
[342747204,1732098671191,-526.88,0.00024109,7]
[342747205,1732098671201,-808.24,0.00024109,7]
[342747206,1732098671210,-550.61,0.00024109,7]
[342747207,1732098671220,-628.93,0.00024109,7]
[342747208,1732098671230,-889.46,0.00024109,7]
[342747209,1732098671240,-608.25,0.00024109,7]
[342747210,1732098671250,-4981.89,0.00024109,7]
[342747211,1732098671260,-471.92,0.00024109,7]
[342747212,1732098671271,-500.0,0.00024109,7]
[342747213,1732098671281,-584.96,0.00024109,7]
[342747214,1732098671291,-931.0,0.00024109,7]
[342747215,1732098671300,-227.9349188,0.00024109,7]
[342747216,1732098671309,-500.0,0.00024109,7]
[342747217,1732098671319,-500.0,0.00024109,7]
[342747218,1732098671329,-391.13836315,0.00024109,7]
[342747219,1732098671338,-3228.47,0.00024109,7]
[342747220,1732098671348,-200.05214552,0.00024109,7]
[342747221,1732098671358,-313.01088476,0.00024109,7]
[342747222,1732098671368,-903.73,0.00024109,7]
[342747223,1732098671377,-500.0,0.00024109,7]
[342747224,1732098671387,-5887.59,0.00024109,7]
[342747225,1732098671396,-500.0,0.00024109,7]
[342747226,1732098671407,-500.0,0.00024109,7]
[342747227,1732098671416,-500.0,0.00024109,7]
[342747228,1732098671426,-500.0,0.00024109,7]
[342747229,1732098671436,-545.65,0.00024109,7]
[342747230,1732098671446,-527.75,0.00024109,7]
[342747231,1732098671456,-500.0,0.00024109,7]
[342747232,1732098671466,-500.0,0.00024109,7]
[342747233,1732098671475,-2693.86,0.00024109,7]
[342747234,1732098671485,-500.0,0.00024109,7]
[342747235,1732098671495,-206.69866118,0.00024109,7]
[342747236,1732098671504,-500.0,0.00024109,7]
[342747237,1732098671514,-500.0,0.00024109,7]
[342747238,1732098671526,-500.0,0.00024109,7]
[342747239,1732098671535,-571.31,0.00024109,7]
[342747240,1732098671545,-500.0,0.00024109,7]
[342747241,1732098671554,-500.0,0.00024109,7]
[342747242,1732098671564,-480.3382051,0.00024109,7]
[342747243,1732098671574,-420.24,0.00024109,7]
[342747244,1732098671583,-500.0,0.00024109,7]
[342747245,1732098671592,-772.94,0.00024109,7]
[342747246,1732098671602,-1287.91,0.00024109,7]
[342747247,1732098671613,-3378.45,0.00024109,7]
[342747248,1732098671622,-500.0,0.00024109,7]
[342747249,1732098671632,-500.0,0.00024109,7]
[342747250,1732098671642,-720.6,0.00024109,7]
[342747251,1732098671652,-3743.65,0.00024109,7]
[342747252,1732098671661,-500.0,0.00024109,7]
[342747253,1732098671671,-606.03,0.00024109,7]
[342747254,1732098671681,-388.97229701,0.00024109,7]
[342747255,1732098671691,-975.02,0.00024109,7]
[342747256,1732098671700,-500.0,0.00024109,7]
[342747257,1732098671710,-250.0,0.00024121,2]
[342747258,1732098671720,-298.91579608,0.00024192,2]
[342747259,1732098671729,-500.0,0.00024209,2]
[342747260,1732098671739,-298.91579608,0.00024301,2]
[342747261,1732098671748,-160.0,0.00024381,9]
[342747262,1732098671757,-260.46644326,0.00024381,5]
[342747263,1732098671767,-500.0,0.00024383,7]
[342747264,1732098671779,-500.0,0.00024383,7]
[342747265,1732098671789,-635.74,0.00024383,7]
[342747266,1732098671802,-616.79,0.00024383,7]
[342747267,1732098671813,-500.0,0.00024383,7]
[342747268,1732098671823,-648.76,0.00024383,7]
[342747269,1732098671832,-837.88,0.00024383,7]
[342747270,1732098671843,-500.0,0.00024383,7]
[342747271,1732098671853,-500.0,0.00024383,7]
[342747272,1732098671862,-614.76,0.00024383,7]
[342747273,1732098671873,-500.0,0.00024383,7]
[342747274,1732098671882,-553.46,0.00024383,7]
[342747275,1732098671892,-1142.87,0.00024383,7]
[342747276,1732098671901,-368.24687157,0.00024383,7]
[342747277,1732098671911,-500.0,0.00024383,7]
[342747278,1732098671922,-500.0,0.00024383,7]
[342747279,1732098671931,-586.55,0.00024383,7]
[342747280,1732098671941,-195.79799795,0.00024383,7]
[342747281,1732098672027,-500.0,0.00024383,7]
[342747282,1732098672038,-500.0,0.00024383,7]
[342747283,1732098672048,-500.0,0.00024383,7]
[342747284,1732098672058,-500.0,0.00024383,7]
[342747285,1732098672067,-500.0,0.00024383,7]
[342747286,1732098672077,-500.0,0.00024383,7]
[342747287,1732098672086,-518.86,0.00024383,7]
[342747288,1732098672095,-512.06,0.00024383,7]
[342747289,1732098672105,-500.0,0.00024383,7]
[342747290,1732098672114,-958.07,0.00024383,7]
[342747291,1732098672125,-500.0,0.00024383,7]
[342747292,1732098672134,-500.0,0.00024383,7]
[342747293,1732098672144,-500.0,0.00024383,7]
[342747294,1732098672154,-500.0,0.00024383,7]
[342747295,1732098672164,-518.73,0.00024383,7]
[342747296,1732098672174,-1123.69,0.00024383,7]
[342747297,1732098672184,-500.0,0.00024383,7]
[342747298,1732098672193,-645.57,0.00024383,7]
[342747299,1732098672203,-500.0,0.00024383,7]
[342747300,1732098672213,-945.04,0.00024383,7]
[342747301,1732098672223,-500.0,0.00024383,7]
[342747302,1732098672233,-561.21,0.00024383,7]
[342747303,1732098672243,-599.35,0.00024383,7]
[342747304,1732098672253,-829.07,0.00024383,7]
[342747305,1732098672263,-500.0,0.00024383,7]
[342747306,1732098672274,-500.0,0.00024383,7]
[342747307,1732098672284,-838.19,0.00024383,7]
[342747308,1732098672294,-500.0,0.00024383,7]
[342747309,1732098672304,-1261.05,0.00024383,7]
[342747310,1732098672314,-572.89,0.00024383,7]